[Event "*** Titled Tuesday Blitz"]
[Site "Chess.com"]
[Date "2020.05.19"]
[Round "7"]
[White "2346PL"]
[Black "Megagigahiper3345"]
[Result "1/2-1/2"]
[WhiteElo "2441"]
[BlackElo "2622"]
[TimeControl "180+1"]
[EndTime "13:21:25 PDT"]
[Termination "Game drawn - insufficient material"]

1. d4 {[%clk 0:03:00.9]} 1... f5 {[%clk 0:02:58.1]} 2. Nc3 {[%clk 0:02:59.3]}
2... d5 {[%clk 0:02:57.3]} 3. e4 {[%clk 0:02:58]} 3... dxe4 {[%clk 0:02:52]} 4.
f3 {[%clk 0:02:58.5]} 4... Nf6 {[%clk 0:02:49.3]} 5. fxe4 {[%clk 0:02:55.3]}
5... fxe4 {[%clk 0:02:46.1]} 6. Bc4 {[%clk 0:02:53.5]} 6... Nc6 {[%clk
0:02:45.4]} 7. Nge2 {[%clk 0:02:53.1]} 7... Na5 {[%clk 0:02:44.4]} 8. Bb3 {[%clk
0:02:45.7]} 8... Nxb3 {[%clk 0:02:40.8]} 9. axb3 {[%clk 0:02:46.6]} 9... g6
{[%clk 0:02:36.8]} 10. Bg5 {[%clk 0:02:43.9]} 10... Bg7 {[%clk 0:02:37]} 11. O-O
{[%clk 0:02:38.8]} 11... O-O {[%clk 0:02:34.7]} 12. Qd2 {[%clk 0:02:37.1]} 12...
c6 {[%clk 0:02:19.4]} 13. Qe3 {[%clk 0:02:35.6]} 13... Bf5 {[%clk 0:02:16.5]}
14. h3 {[%clk 0:02:35.6]} 14... Nd5 {[%clk 0:02:10.3]} 15. Qd2 {[%clk
0:02:33.7]} 15... Qd7 {[%clk 0:02:03.3]} 16. Rad1 {[%clk 0:02:30]} 16... e3
{[%clk 0:02:01.6]} 17. Bxe3 {[%clk 0:02:28.6]} 17... Nxe3 {[%clk 0:02:01.9]} 18.
Qxe3 {[%clk 0:02:28.9]} 18... Bxc2 {[%clk 0:02:02.5]} 19. Rd2 {[%clk 0:02:26.3]}
19... Rxf1+ {[%clk 0:01:58.9]} 20. Kxf1 {[%clk 0:02:27.2]} 20... Bxb3 {[%clk
0:01:56.1]} 21. Ne4 {[%clk 0:02:24.8]} 21... Bd5 {[%clk 0:01:49.4]} 22. Nc5
{[%clk 0:02:22.7]} 22... Qc7 {[%clk 0:01:38.5]} 23. Kg1 {[%clk 0:02:21.3]} 23...
b6 {[%clk 0:01:35.6]} 24. Ne6 {[%clk 0:02:20.4]} 24... Qd6 {[%clk 0:01:31.1]}
25. Nxg7 {[%clk 0:02:19.1]} 25... Kxg7 {[%clk 0:01:32]} 26. Nf4 {[%clk
0:02:18.4]} 26... Rf8 {[%clk 0:01:31.8]} 27. Nd3 {[%clk 0:02:17.9]} 27... e6
{[%clk 0:01:13.2]} 28. Ne5 {[%clk 0:02:17]} 28... Qe7 {[%clk 0:01:05.2]} 29. Ng4
{[%clk 0:02:13.4]} 29... Qd6 {[%clk 0:00:59.4]} 30. Qh6+ {[%clk 0:02:09.2]}
30... Kg8 {[%clk 0:00:59.4]} 31. Rf2 {[%clk 0:02:07.3]} 31... Rxf2 {[%clk
0:00:58]} 32. Kxf2 {[%clk 0:02:08.2]} 32... Qf8+ {[%clk 0:00:57.3]} 33. Ke3
{[%clk 0:02:00.8]} 33... Qxh6+ {[%clk 0:00:54.4]} 34. Nxh6+ {[%clk 0:02:01.7]}
34... Kg7 {[%clk 0:00:54.8]} 35. Ng4 {[%clk 0:02:01]} 35... a5 {[%clk
0:00:51.5]} 36. h4 {[%clk 0:02:01.9]} 36... b5 {[%clk 0:00:51.2]} 37. g3 {[%clk
0:02:01.9]} 37... b4 {[%clk 0:00:50.8]} 38. Ne5 {[%clk 0:02:01.4]} 38... a4
{[%clk 0:00:49.7]} 39. Kd2 {[%clk 0:01:55.3]} 39... a3 {[%clk 0:00:49.8]} 40.
bxa3 {[%clk 0:01:55.2]} 40... bxa3 {[%clk 0:00:50.7]} 41. Kc3 {[%clk 0:01:55]}
41... a2 {[%clk 0:00:51.4]} 42. Kb2 {[%clk 0:01:55]} 42... Kf6 {[%clk
0:00:49.3]} 43. g4 {[%clk 0:01:54.5]} 43... h6 {[%clk 0:00:36.7]} 44. Nd7+
{[%clk 0:01:51.8]} 44... Ke7 {[%clk 0:00:34.1]} 45. Ne5 {[%clk 0:01:52.7]} 45...
g5 {[%clk 0:00:34]} 46. h5 {[%clk 0:01:49.1]} 46... Kf6 {[%clk 0:00:28.4]} 47.
Nd7+ {[%clk 0:01:47.8]} 47... Kg7 {[%clk 0:00:28.3]} 48. Ne5 {[%clk 0:01:48.7]}
48... Bb3 {[%clk 0:00:28]} 49. Ka1 {[%clk 0:01:46]} 49... Bd5 {[%clk 0:00:18.3]}
50. Kb2 {[%clk 0:01:45.8]} 50... Kf8 {[%clk 0:00:18.4]} 51. Ka1 {[%clk 0:01:43]}
51... Ke7 {[%clk 0:00:17.5]} 52. Kb2 {[%clk 0:01:43]} 52... Ke8 {[%clk
0:00:14.3]} 53. Ka1 {[%clk 0:01:42.6]} 53... Kd8 {[%clk 0:00:04.3]} 54. Nf7+
{[%clk 0:01:41.5]} 54... Ke7 {[%clk 0:00:04.7]} 55. Ne5 {[%clk 0:01:41.3]} 55...
Kd8 {[%clk 0:00:03.3]} 56. Nf7+ {[%clk 0:01:41.4]} 56... Kc7 {[%clk 0:00:03.9]}
57. Nxh6 {[%clk 0:01:40.7]} 57... c5 {[%clk 0:00:04.4]} 58. dxc5 {[%clk
0:01:31.5]} 58... e5 {[%clk 0:00:04.9]} 59. Nf5 {[%clk 0:01:26.3]} 59... e4
{[%clk 0:00:05.3]} 60. h6 {[%clk 0:01:24.1]} 60... Bg8 {[%clk 0:00:05.3]} 61.
Nd4 {[%clk 0:01:07.5]} 61... e3 {[%clk 0:00:04.6]} 62. h7 {[%clk 0:01:02.5]}
62... Bxh7 {[%clk 0:00:03.5]} 63. Kxa2 {[%clk 0:01:03.2]} 63... Bd3 {[%clk
0:00:02.4]} 64. Kb2 {[%clk 0:00:57.9]} 64... e2 {[%clk 0:00:02.9]} 65. Nf3
{[%clk 0:00:58.5]} 65... Kc6 {[%clk 0:00:02.8]} 66. Kc3 {[%clk 0:00:57.5]} 66...
Bb5 {[%clk 0:00:02.4]} 67. Kd2 {[%clk 0:00:50]} 67... Kxc5 {[%clk 0:00:03]} 68.
Nxg5 {[%clk 0:00:50.4]} 68... Bd7 {[%clk 0:00:03.7]} 69. Ne4+ {[%clk 0:00:49]}
69... Kd4 {[%clk 0:00:04.1]} 70. Nf6 {[%clk 0:00:40]} 70... Be6 {[%clk 0:00:04]}
71. Kxe2 {[%clk 0:00:38.1]} 71... Bxg4+ {[%clk 0:00:04.1]} 1/2-1/2

[Event "*** Titled Tuesday Blitz"]
[Site "Chess.com"]
[Date "2020.05.19"]
[Round "7"]
[White "AlexTruskavetsky"]
[Black "aNaartjieZA"]
[Result "0-1"]
[WhiteElo "2446"]
[BlackElo "2582"]
[TimeControl "180+1"]
[EndTime "13:21:25 PDT"]
[Termination "aNaartjieZA won on time"]

1. d4 {[%clk 0:03:00.9]} 1... Nf6 {[%clk 0:02:59.8]} 2. Bg5 {[%clk 0:03:00.4]}
2... Ne4 {[%clk 0:02:59.5]} 3. Bf4 {[%clk 0:02:59.8]} 3... c5 {[%clk 0:02:58.6]}
4. f3 {[%clk 0:02:57]} 4... Nf6 {[%clk 0:02:58.8]} 5. d5 {[%clk 0:02:56.2]} 5...
d6 {[%clk 0:02:53.8]} 6. e4 {[%clk 0:02:55.2]} 6... g6 {[%clk 0:02:52.4]} 7. Nc3
{[%clk 0:02:53.2]} 7... Bg7 {[%clk 0:02:52.6]} 8. Bb5+ {[%clk 0:02:33.8]} 8...
Nbd7 {[%clk 0:02:52.1]} 9. a4 {[%clk 0:02:32.1]} 9... a6 {[%clk 0:02:46.5]} 10.
Be2 {[%clk 0:02:30.1]} 10... O-O {[%clk 0:02:46.7]} 11. Nh3 {[%clk 0:02:29.2]}
11... Ne5 {[%clk 0:02:46.4]} 12. Nf2 {[%clk 0:02:28.5]} 12... Nh5 {[%clk
0:02:44.2]} 13. Bg5 {[%clk 0:02:13.4]} 13... h6 {[%clk 0:02:41.3]} 14. Bd2
{[%clk 0:02:05.9]} 14... Nf6 {[%clk 0:02:27.4]} 15. f4 {[%clk 0:01:59]} 15...
Ned7 {[%clk 0:02:25.7]} 16. O-O {[%clk 0:01:58.5]} 16... e6 {[%clk 0:02:10.1]}
17. dxe6 {[%clk 0:01:55]} 17... fxe6 {[%clk 0:02:11]} 18. Bc4 {[%clk 0:01:49.3]}
18... Qe7 {[%clk 0:02:10.7]} 19. a5 {[%clk 0:01:43.9]} 19... Kh7 {[%clk
0:02:09.9]} 20. Re1 {[%clk 0:01:42.6]} 20... e5 {[%clk 0:02:08.8]} 21. f5 {[%clk
0:01:36.1]} 21... gxf5 {[%clk 0:02:08.4]} 22. exf5 {[%clk 0:01:35.3]} 22... b5
{[%clk 0:02:04.8]} 23. axb6 {[%clk 0:00:41.8]} 23... Nxb6 {[%clk 0:02:03.3]} 24.
Bd3 {[%clk 0:00:37.6]} 24... Bb7 {[%clk 0:02:00]} 25. Nce4 {[%clk 0:00:22]}
25... c4 {[%clk 0:01:57.3]} 26. Nxf6+ {[%clk 0:00:20.7]} 26... Qxf6 {[%clk
0:01:57]} 27. Ng4 {[%clk 0:00:16.3]} 27... Qh4 {[%clk 0:01:43.5]} 28. f6+ {[%clk
0:00:15.6]} 28... cxd3 {[%clk 0:01:42.8]} 29. fxg7 {[%clk 0:00:15.2]} 29... Rf7
{[%clk 0:01:33.5]} 30. Bxh6 {[%clk 0:00:13.1]} 30... dxc2 {[%clk 0:01:00.4]} 31.
Qxc2+ {[%clk 0:00:14]} 31... Kg8 {[%clk 0:01:00.4]} 32. h3 {[%clk 0:00:11.8]}
32... Rc8 {[%clk 0:00:51.4]} 33. Qd3 {[%clk 0:00:10.3]} 33... Nc4 {[%clk
0:00:38.7]} 34. Rf1 {[%clk 0:00:09.6]} 34... Rcc7 {[%clk 0:00:32.2]} 35. Qg6
{[%clk 0:00:08.6]} 35... Bxg2 {[%clk 0:00:19.8]} 36. Rxf7 {[%clk 0:00:06.4]}
36... Rxf7 {[%clk 0:00:19]} 37. Kxg2 {[%clk 0:00:06.5]} 37... Ne3+ {[%clk
0:00:18.4]} 38. Bxe3 {[%clk 0:00:05.6]} 38... Rxg7 {[%clk 0:00:18.5]} 39. Qe6+
{[%clk 0:00:05.1]} 39... Kh7 {[%clk 0:00:18.4]} 40. Qh6+ {[%clk 0:00:04.8]}
40... Qxh6 {[%clk 0:00:18]} 41. Bxh6 {[%clk 0:00:05.7]} 41... Rb7 {[%clk
0:00:18.4]} 42. Bc1 {[%clk 0:00:05.2]} 42... Rb6 {[%clk 0:00:17.9]} 43. Ra5
{[%clk 0:00:05.1]} 43... Kg6 {[%clk 0:00:17.9]} 44. Rd5 {[%clk 0:00:05]} 44...
Kf5 {[%clk 0:00:17.8]} 45. Ne3+ {[%clk 0:00:04.6]} 45... Ke4 {[%clk 0:00:18.1]}
46. h4 {[%clk 0:00:04.6]} 46... a5 {[%clk 0:00:17.7]} 47. h5 {[%clk 0:00:03.9]}
47... a4 {[%clk 0:00:18]} 48. h6 {[%clk 0:00:03.7]} 48... Rc6 {[%clk 0:00:18.6]}
49. h7 {[%clk 0:00:02.5]} 49... Rc8 {[%clk 0:00:18.9]} 50. Rxd6 {[%clk
0:00:02.4]} 50... Rh8 {[%clk 0:00:18.9]} 51. Rh6 {[%clk 0:00:01.9]} 51... Kd3
{[%clk 0:00:18.8]} 52. Kg3 {[%clk 0:00:01.3]} 52... e4 {[%clk 0:00:19.1]} 53.
Kg4 {[%clk 0:00:02.2]} 53... Ke2 {[%clk 0:00:17.1]} 54. Kg5 {[%clk 0:00:02.4]}
54... Rc8 {[%clk 0:00:15.8]} 55. h8=Q {[%clk 0:00:01.2]} 55... Rxc1 {[%clk
0:00:16.4]} 0-1

[Event "*** Titled Tuesday Blitz"]
[Site "Chess.com"]
[Date "2020.05.19"]
[Round "7"]
[White "ChocolateRoses"]
[Black "realmadridtv"]
[Result "0-1"]
[WhiteElo "2270"]
[BlackElo "2476"]
[TimeControl "180+1"]
[EndTime "13:21:25 PDT"]
[Termination "realmadridtv won on time"]

1. Nf3 {[%clk 0:03:00.9]} 1... Nf6 {[%clk 0:02:59.9]} 2. g3 {[%clk 0:02:58.8]}
2... g6 {[%clk 0:03:00.4]} 3. b3 {[%clk 0:02:58.1]} 3... Bg7 {[%clk 0:03:01.1]}
4. Bb2 {[%clk 0:02:58.2]} 4... O-O {[%clk 0:03:01.1]} 5. Bg2 {[%clk 0:02:58.3]}
5... b6 {[%clk 0:03:01.3]} 6. O-O {[%clk 0:02:57.8]} 6... Bb7 {[%clk 0:03:01.7]}
7. c4 {[%clk 0:02:58.2]} 7... c5 {[%clk 0:03:01.1]} 8. d4 {[%clk 0:02:57.7]}
8... cxd4 {[%clk 0:03:00.8]} 9. Qxd4 {[%clk 0:02:56.8]} 9... d6 {[%clk
0:02:57.6]} 10. Nc3 {[%clk 0:02:53.2]} 10... Nbd7 {[%clk 0:02:54.2]} 11. Rfd1
{[%clk 0:02:49.5]} 11... a6 {[%clk 0:02:49.7]} 12. Qe3 {[%clk 0:02:44.9]} 12...
Re8 {[%clk 0:02:36]} 13. Rac1 {[%clk 0:02:41.5]} 13... Rc8 {[%clk 0:02:17.5]}
14. h3 {[%clk 0:02:31.9]} 14... Rc7 {[%clk 0:02:12.4]} 15. Nd4 {[%clk
0:02:27.6]} 15... Bxg2 {[%clk 0:02:11.3]} 16. Kxg2 {[%clk 0:02:27.6]} 16... Qa8+
{[%clk 0:02:08.2]} 17. Qf3 {[%clk 0:02:27.2]} 17... Qc8 {[%clk 0:02:01.9]} 18.
Nd5 {[%clk 0:01:46.3]} 18... Nxd5 {[%clk 0:02:00.2]} 19. cxd5 {[%clk 0:01:34.8]}
19... Bxd4 {[%clk 0:01:58.5]} 20. Rxc7 {[%clk 0:01:33.7]} 20... Qxc7 {[%clk
0:01:58.1]} 21. Bxd4 {[%clk 0:01:10.1]} 21... Qc2 {[%clk 0:01:55.9]} 22. Rd3
{[%clk 0:01:02]} 22... Nc5 {[%clk 0:01:36.8]} 23. Re3 {[%clk 0:00:45.4]} 23...
Qf5 {[%clk 0:01:28.8]} 24. Qxf5 {[%clk 0:00:39.5]} 24... gxf5 {[%clk 0:01:29.7]}
25. f3 {[%clk 0:00:33.8]} 25... e5 {[%clk 0:01:26]} 26. dxe6 {[%clk 0:00:33.1]}
26... fxe6 {[%clk 0:01:24.5]} 27. Rc3 {[%clk 0:00:27.5]} 27... e5 {[%clk
0:01:18.7]} 28. Be3 {[%clk 0:00:26.8]} 28... f4 {[%clk 0:01:04.5]} 29. Bf2
{[%clk 0:00:20.3]} 29... fxg3 {[%clk 0:01:03.9]} 30. Kxg3 {[%clk 0:00:20.8]}
30... a5 {[%clk 0:00:46]} 31. a3 {[%clk 0:00:20.6]} 31... Kf7 {[%clk 0:00:42.6]}
32. b4 {[%clk 0:00:20.7]} 32... axb4 {[%clk 0:00:43]} 33. axb4 {[%clk
0:00:21.6]} 33... Rg8+ {[%clk 0:00:43.4]} 34. Kh2 {[%clk 0:00:20]} 34... Ne6
{[%clk 0:00:43.6]} 35. Bxb6 {[%clk 0:00:13.6]} 35... Nf4 {[%clk 0:00:42.9]} 36.
Rc7+ {[%clk 0:00:14.1]} 36... Ke6 {[%clk 0:00:40.3]} 37. e3 {[%clk 0:00:14.4]}
37... Nd5 {[%clk 0:00:37.9]} 38. Rb7 {[%clk 0:00:13.7]} 38... h5 {[%clk
0:00:34.1]} 39. Ba7 {[%clk 0:00:12.7]} 39... Rc8 {[%clk 0:00:28.8]} 40. b5
{[%clk 0:00:12]} 40... h4 {[%clk 0:00:27.2]} 41. Kg2 {[%clk 0:00:12.1]} 41...
Rc2+ {[%clk 0:00:26.7]} 42. Kf1 {[%clk 0:00:12.4]} 42... e4 {[%clk 0:00:21.4]}
43. fxe4 {[%clk 0:00:12.2]} 43... Nc3 {[%clk 0:00:22.1]} 44. Bb8 {[%clk
0:00:08.5]} 44... Nxe4 {[%clk 0:00:21.3]} 45. b6 {[%clk 0:00:07.8]} 45... Ng3+
{[%clk 0:00:17.9]} 46. Ke1 {[%clk 0:00:07.9]} 46... Rb2 {[%clk 0:00:16]} 47. Bc7
{[%clk 0:00:06.7]} 47... Kd5 {[%clk 0:00:15.3]} 48. Bd8 {[%clk 0:00:07]} 48...
Ke4 {[%clk 0:00:14.1]} 49. Re7+ {[%clk 0:00:07.1]} 49... Kd3 {[%clk 0:00:12]}
50. b7 {[%clk 0:00:07.5]} 50... Ne4 {[%clk 0:00:07.4]} 51. Kf1 {[%clk
0:00:04.8]} 51... Rb1+ {[%clk 0:00:07.2]} 52. Kg2 {[%clk 0:00:05]} 52... Ke2
{[%clk 0:00:06.8]} 53. Ba5 {[%clk 0:00:02.8]} 53... Kxe3 {[%clk 0:00:06.6]} 0-1

[Event "*** Titled Tuesday Blitz"]
[Site "Chess.com"]
[Date "2020.05.19"]
[Round "7"]
[White "Papa12341234"]
[Black "Baby_Legs"]
[Result "0-1"]
[WhiteElo "2548"]
[BlackElo "2717"]
[TimeControl "180+1"]
[EndTime "13:21:26 PDT"]
[Termination "Baby_Legs won by resignation"]

1. e4 {[%clk 0:03:00.9]} 1... c6 {[%clk 0:02:59.9]} 2. d4 {[%clk 0:03:00.6]}
2... d5 {[%clk 0:03:00.1]} 3. Nc3 {[%clk 0:03:01.1]} 3... g6 {[%clk 0:02:59.1]}
4. Nf3 {[%clk 0:02:58.7]} 4... Bg7 {[%clk 0:02:59.2]} 5. e5 {[%clk 0:02:58.6]}
5... f6 {[%clk 0:02:53.4]} 6. Bf4 {[%clk 0:02:57.5]} 6... Bg4 {[%clk 0:02:40.1]}
7. h3 {[%clk 0:02:52.5]} 7... Bxf3 {[%clk 0:02:39.8]} 8. Qxf3 {[%clk 0:02:53.4]}
8... fxe5 {[%clk 0:02:39.3]} 9. dxe5 {[%clk 0:02:48.7]} 9... Nd7 {[%clk
0:02:36.5]} 10. e6 {[%clk 0:02:42.9]} 10... Ndf6 {[%clk 0:01:44.9]} 11. O-O-O
{[%clk 0:02:40.4]} 11... Qa5 {[%clk 0:01:34.5]} 12. g4 {[%clk 0:02:39.2]} 12...
O-O-O {[%clk 0:01:33.5]} 13. Kb1 {[%clk 0:02:25.7]} 13... Ne8 {[%clk 0:01:16.8]}
14. Bd2 {[%clk 0:02:16.3]} 14... Qb6 {[%clk 0:01:08.8]} 15. Na4 {[%clk
0:02:07.3]} 15... Qc7 {[%clk 0:01:08.1]} 16. Qa3 {[%clk 0:02:05]} 16... Nd6
{[%clk 0:00:57.3]} 17. Nc5 {[%clk 0:02:02.8]} 17... Qb6 {[%clk 0:00:47.8]} 18.
Nd7 {[%clk 0:01:51.7]} 18... Rxd7 {[%clk 0:00:37.7]} 19. exd7+ {[%clk
0:01:52.6]} 19... Kxd7 {[%clk 0:00:38.2]} 20. Bd3 {[%clk 0:01:48]} 20... Nf6
{[%clk 0:00:37.5]} 21. f3 {[%clk 0:01:38.5]} 21... c5 {[%clk 0:00:30.9]} 22.
Rhe1 {[%clk 0:01:35]} 22... c4 {[%clk 0:00:29.8]} 23. Bf1 {[%clk 0:01:33.6]}
23... Re8 {[%clk 0:00:28.7]} 24. g5 {[%clk 0:01:07.9]} 24... Nh5 {[%clk
0:00:27.7]} 25. Be3 {[%clk 0:01:05.9]} 25... Qc6 {[%clk 0:00:22.6]} 26. c3
{[%clk 0:00:59.5]} 26... Ng3 {[%clk 0:00:20.6]} 27. Bg2 {[%clk 0:00:53.5]} 27...
Ngf5 {[%clk 0:00:20.7]} 28. Bf4 {[%clk 0:00:52.5]} 28... e5 {[%clk 0:00:20.4]}
29. Bh2 {[%clk 0:00:49.1]} 29... a6 {[%clk 0:00:20]} 30. Qb4 {[%clk 0:00:37.3]}
30... b6 {[%clk 0:00:19.3]} 31. a4 {[%clk 0:00:35.7]} 31... a5 {[%clk
0:00:19.5]} 32. Qa3 {[%clk 0:00:35.5]} 32... Re6 {[%clk 0:00:19.3]} 33. b3
{[%clk 0:00:32.7]} 33... cxb3 {[%clk 0:00:18.5]} 34. Qxb3 {[%clk 0:00:33.6]}
34... Nc4 {[%clk 0:00:17.4]} 35. Bf1 {[%clk 0:00:34]} 35... Nfd6 {[%clk
0:00:17.3]} 36. f4 {[%clk 0:00:30.1]} 36... e4 {[%clk 0:00:17]} 37. f5 {[%clk
0:00:30.5]} 37... gxf5 {[%clk 0:00:16.4]} 38. Bxd6 {[%clk 0:00:30.1]} 38... Rxd6
{[%clk 0:00:17.1]} 39. Bxc4 {[%clk 0:00:28.1]} 39... dxc4 {[%clk 0:00:18]} 40.
Rxd6+ {[%clk 0:00:27.3]} 40... Qxd6 {[%clk 0:00:17.8]} 41. Qb5+ {[%clk
0:00:27.3]} 41... Kc7 {[%clk 0:00:17.2]} 42. Qxc4+ {[%clk 0:00:22.6]} 42... Kb7
{[%clk 0:00:17.6]} 43. Qf7+ {[%clk 0:00:22.3]} 43... Qc7 {[%clk 0:00:17.9]} 44.
Qxc7+ {[%clk 0:00:21]} 44... Kxc7 {[%clk 0:00:18.8]} 45. Kc2 {[%clk 0:00:21.6]}
45... Kd6 {[%clk 0:00:19.1]} 46. h4 {[%clk 0:00:21.5]} 46... Kd5 {[%clk
0:00:18.5]} 47. Rd1+ {[%clk 0:00:21.1]} 47... Ke6 {[%clk 0:00:18.5]} 48. Rd8
{[%clk 0:00:21]} 48... f4 {[%clk 0:00:17.7]} 49. Kd2 {[%clk 0:00:20.8]} 49...
Be5 {[%clk 0:00:17.5]} 50. c4 {[%clk 0:00:20.4]} 50... Bd6 {[%clk 0:00:16.6]}
51. Ke2 {[%clk 0:00:20.3]} 51... Bc5 {[%clk 0:00:16.6]} 52. Re8+ {[%clk
0:00:19.9]} 52... Kf5 {[%clk 0:00:16.7]} 53. Rh8 {[%clk 0:00:18.9]} 53... f3+
{[%clk 0:00:16.8]} 54. Kf1 {[%clk 0:00:18]} 54... e3 {[%clk 0:00:17.2]} 55. Rf8+
{[%clk 0:00:16.1]} 55... Kg4 {[%clk 0:00:17.2]} 56. Re8 {[%clk 0:00:15.8]} 56...
e2+ {[%clk 0:00:17.6]} 57. Ke1 {[%clk 0:00:15.4]} 57... Bb4+ {[%clk 0:00:17.5]}
58. Kf2 {[%clk 0:00:16]} 58... e1=Q+ {[%clk 0:00:17.5]} 59. Rxe1 {[%clk
0:00:16.7]} 59... Bxe1+ {[%clk 0:00:18.4]} 60. Kxe1 {[%clk 0:00:17.4]} 60...
Kxh4 {[%clk 0:00:19.3]} 61. Kf2 {[%clk 0:00:17.6]} 61... Kg4 {[%clk 0:00:19.3]}
62. Ke3 {[%clk 0:00:15.6]} 62... Kg3 {[%clk 0:00:18.9]} 63. g6 {[%clk
0:00:15.9]} 63... hxg6 {[%clk 0:00:18.6]} 64. Kd4 {[%clk 0:00:16.1]} 64... f2
{[%clk 0:00:18.8]} 65. Kd5 {[%clk 0:00:17]} 65... f1=Q {[%clk 0:00:19.1]} 66.
Kc6 {[%clk 0:00:17.9]} 66... Qxc4+ {[%clk 0:00:19.5]} 67. Kxb6 {[%clk
0:00:18.8]} 67... Qxa4 {[%clk 0:00:20.4]} 68. Ka6 {[%clk 0:00:18.6]} 68... Qb4
{[%clk 0:00:21.3]} 69. Ka7 {[%clk 0:00:18.7]} 69... a4 {[%clk 0:00:22.2]} 70.
Ka8 {[%clk 0:00:19.6]} 70... a3 {[%clk 0:00:23.1]} 0-1

[Event "*** Titled Tuesday Blitz"]
[Site "Chess.com"]
[Date "2020.05.19"]
[Round "7"]
[White "Benjoneliere44"]
[Black "AnthonyWirig"]
[Result "0-1"]
[WhiteElo "2491"]
[BlackElo "2670"]
[TimeControl "180+1"]
[EndTime "13:21:27 PDT"]
[Termination "AnthonyWirig won by resignation"]

1. e4 {[%clk 0:03:00.9]} 1... c5 {[%clk 0:02:59.2]} 2. Nc3 {[%clk 0:02:59.6]}
2... g6 {[%clk 0:02:57]} 3. f4 {[%clk 0:02:58.5]} 3... Bg7 {[%clk 0:02:57]} 4.
Nf3 {[%clk 0:02:58.5]} 4... Nc6 {[%clk 0:02:57.3]} 5. Bc4 {[%clk 0:02:58.9]}
5... e6 {[%clk 0:02:57.3]} 6. O-O {[%clk 0:02:59]} 6... Nge7 {[%clk 0:02:57.9]}
7. Qe1 {[%clk 0:02:59.5]} 7... O-O {[%clk 0:02:38.3]} 8. d3 {[%clk 0:02:57.6]}
8... d5 {[%clk 0:02:37.7]} 9. Bb3 {[%clk 0:02:57.4]} 9... Na5 {[%clk 0:02:29.4]}
10. Bd2 {[%clk 0:02:55.3]} 10... Nxb3 {[%clk 0:02:26.7]} 11. axb3 {[%clk
0:02:54.3]} 11... Nc6 {[%clk 0:02:26.3]} 12. e5 {[%clk 0:02:48.2]} 12... Bd7
{[%clk 0:01:51.6]} 13. Kh1 {[%clk 0:02:45.1]} 13... a6 {[%clk 0:01:44.3]} 14.
Nd1 {[%clk 0:02:37.7]} 14... f6 {[%clk 0:01:37.1]} 15. exf6 {[%clk 0:02:26.2]}
15... Qxf6 {[%clk 0:01:33]} 16. Ne3 {[%clk 0:02:14.1]} 16... Qxb2 {[%clk
0:00:54.6]} 17. Rb1 {[%clk 0:02:12.2]} 17... Qf6 {[%clk 0:00:51.9]} 18. Ng4
{[%clk 0:02:11.6]} 18... Qe7 {[%clk 0:00:48.4]} 19. Qg3 {[%clk 0:02:07.5]} 19...
Rf5 {[%clk 0:00:44.5]} 20. Rbe1 {[%clk 0:02:05.2]} 20... Raf8 {[%clk 0:00:43.4]}
21. h3 {[%clk 0:01:56.2]} 21... b5 {[%clk 0:00:43.1]} 22. Re2 {[%clk 0:01:50.2]}
22... a5 {[%clk 0:00:42.9]} 23. Rfe1 {[%clk 0:01:49.7]} 23... a4 {[%clk
0:00:42.7]} 24. bxa4 {[%clk 0:01:49.4]} 24... bxa4 {[%clk 0:00:43.6]} 25. Ng5
{[%clk 0:01:49.8]} 25... Nd4 {[%clk 0:00:38.8]} 26. Qh4 {[%clk 0:01:37.8]} 26...
h5 {[%clk 0:00:32.8]} 27. Re5 {[%clk 0:01:11.6]} 27... Rxg5 {[%clk 0:00:24.9]}
28. Rxg5 {[%clk 0:01:04.9]} 28... hxg4 {[%clk 0:00:23.9]} 29. Qxg4 {[%clk
0:00:53.7]} 29... e5 {[%clk 0:00:18.8]} 30. Qg3 {[%clk 0:00:31.7]} 30... Nf5
{[%clk 0:00:17.9]} 31. Qf3 {[%clk 0:00:30.7]} 31... e4 {[%clk 0:00:13.8]} 32.
dxe4 {[%clk 0:00:30.4]} 32... dxe4 {[%clk 0:00:14.7]} 33. Rxe4 {[%clk
0:00:29.1]} 33... Bc6 {[%clk 0:00:09.7]} 34. Rxe7 {[%clk 0:00:22.9]} 34... Bxf3
{[%clk 0:00:10]} 35. Rxg7+ {[%clk 0:00:17.8]} 35... Kxg7 {[%clk 0:00:10.9]} 36.
gxf3 {[%clk 0:00:18]} 36... Re8 {[%clk 0:00:06.1]} 37. Bc3+ {[%clk 0:00:18.3]}
37... Kf7 {[%clk 0:00:06.2]} 38. Be5 {[%clk 0:00:17.7]} 38... Rd8 {[%clk
0:00:06]} 39. Rg1 {[%clk 0:00:16.8]} 39... Rd2 {[%clk 0:00:04.6]} 40. Ra1 {[%clk
0:00:17.2]} 40... Rxc2 {[%clk 0:00:04.5]} 41. Rxa4 {[%clk 0:00:16.4]} 41... Nh4
{[%clk 0:00:03.1]} 42. Ra7+ {[%clk 0:00:15.8]} 42... Ke6 {[%clk 0:00:03.1]} 43.
Ra6+ {[%clk 0:00:15.6]} 43... Kd5 {[%clk 0:00:03.5]} 44. Rd6+ {[%clk 0:00:15.1]}
44... Kc4 {[%clk 0:00:03.9]} 45. Rd8 {[%clk 0:00:12.7]} 45... Nxf3 {[%clk
0:00:04]} 46. f5 {[%clk 0:00:09.5]} 46... Nxe5 {[%clk 0:00:04.2]} 47. fxg6
{[%clk 0:00:07.9]} 47... Nxg6 {[%clk 0:00:05.1]} 48. Rg8 {[%clk 0:00:07.2]}
48... Ne5 {[%clk 0:00:05.3]} 49. h4 {[%clk 0:00:06.8]} 49... Rc3 {[%clk
0:00:04.2]} 50. Kh2 {[%clk 0:00:05.8]} 50... Kd4 {[%clk 0:00:04.4]} 51. h5
{[%clk 0:00:05.6]} 51... Ra3 {[%clk 0:00:04.1]} 52. h6 {[%clk 0:00:05.5]} 52...
Ra6 {[%clk 0:00:04.7]} 53. Rd8+ {[%clk 0:00:03.5]} 53... Ke4 {[%clk 0:00:04.4]}
54. Rc8 {[%clk 0:00:02.7]} 54... Rxh6+ {[%clk 0:00:04.5]} 55. Kg3 {[%clk
0:00:03.6]} 55... Kd4 {[%clk 0:00:04.9]} 56. Kf2 {[%clk 0:00:03.9]} 56... Rc6
{[%clk 0:00:05.8]} 57. Ke2 {[%clk 0:00:04.3]} 57... Rxc8 {[%clk 0:00:05.7]} 0-1